fUSD/lending_fUSD_20250525
["ID","MTS","AMOUNT","RATE_DAILY","PERIOD"]
[362333463,1748200247983,-151.0,0.00019995,2]
[362333464,1748200247992,-1404.0969015,0.00019995,2]
[362333465,1748200248002,-151.0,0.00019995,2]
[362333466,1748200248011,-6757.388905,0.00019995,2]
[362333467,1748200248021,-151.0,0.00019995,2]
[362333468,1748200248031,-151.0,0.00019995,2]
[362333469,1748200248040,-151.0,0.00019995,2]
[362333470,1748200248049,-151.0,0.00019995,2]
[362333471,1748200248058,-151.0,0.00019995,2]
[362333472,1748200248067,-211.76283,0.00019995,2]
[362333473,1748200248076,-211.76283,0.00019995,2]
[362333474,1748200248086,-217.570133,0.00019995,2]
[362333475,1748200248095,-1895.83,0.00019997,2]
[362333476,1748200248104,-420.0,0.00019997,2]
[362333477,1748200248113,-845.96,0.00019997,2]
[362333478,1748200248123,-666.0,0.00019997,2]
[362333479,1748200248132,-1904.0,0.00019998,2]
[362333480,1748200248142,-156.24185,0.00019998,2]
[362333481,1748200248151,-151.0,0.00019998,2]
[362333482,1748200248161,-151.0,0.00019998,2]
[362333483,1748200248170,-151.0,0.00019998,2]
[362333484,1748200248180,-178.958119,0.00019998,2]
[362333485,1748200248189,-178.958119,0.00019998,2]
[362333486,1748200248199,-420.0,0.00019998,2]
[362333487,1748200248208,-420.0,0.00019998,2]
[362333488,1748200248218,-420.0,0.00019998,2]
[362333489,1748200248229,-1283.37,0.00019998,2]
[362333490,1748200248238,-580.668852,0.00019998,2]
[362333491,1748200248247,-4038.172306,0.00019998,2]
[362333492,1748200248257,-580.668852,0.00019998,2]
[362333493,1748200248266,-4038.172306,0.00019998,2]
[362333494,1748200248276,-227.429453,0.00019998,2]
[362333495,1748200248286,-420.0,0.00019998,2]
[362333496,1748200248296,-420.0,0.00019998,2]
[362333497,1748200248305,-151.0,0.00019998,2]
[362333498,1748200248314,-420.0,0.00019998,2]
[362333499,1748200248323,-151.0,0.00019998,2]
[362333500,1748200248331,-420.0,0.00019998,2]
[362333501,1748200248341,-420.0,0.00019998,2]
[362333502,1748200248350,-420.0,0.00019998,2]
[362333503,1748200248361,-420.0,0.00019998,2]
[362333504,1748200248373,-420.0,0.00019998,2]
[362333505,1748200248383,-1895.83,0.00019998,2]
[362333506,1748200248395,-420.0,0.00019998,2]
[362333507,1748200248405,-420.0,0.00019998,2]
[362333508,1748200248414,-420.0,0.00019998,2]
[362333509,1748200248423,-845.96,0.00019998,2]
[362333510,1748200248433,-151.0,0.00019998,2]
[362333511,1748200248442,-151.0,0.00019998,2]
[362333512,1748200248451,-151.0,0.00019998,2]
[362333513,1748200248461,-151.0,0.00019998,2]
[362333514,1748200248472,-204.42124139,0.00019998,2]
[362333515,1748200248481,-274761.13887257,0.00019998,2]
[362333516,1748200248491,-151.0,0.00019999,2]
[362333517,1748200248501,-151.0,0.00019999,2]
[362333518,1748200248512,-151.0,0.00019999,2]
[362333519,1748200248522,-151.0,0.00019999,2]
[362333520,1748200248531,-155.413652,0.00019999,2]
[362333521,1748200248541,-3057.78164468,0.00019999,2]
[362333522,1748200248551,-151.0,0.00019999,2]
[362333523,1748200248560,-151.0,0.00019999,2]
[362333524,1748200248570,-151.0,0.00019999,2]
[362333525,1748200248581,-151.0,0.00019999,2]
[362333526,1748200248591,-1000.0,0.00019999,2]
[362333527,1748200248601,-151.0,0.00019999,2]
[362333528,1748200248611,-150.0,0.00019999,2]
[362333529,1748200248622,-417.540063,0.00019999,2]
[362333530,1748200248632,-417.540063,0.00019999,2]
[362333531,1748200248642,-197.92121,0.00019999,2]
[362333532,1748200248653,-151.0,0.00019999,2]
[362333533,1748200248663,-197.92121,0.00019999,2]
[362333534,1748200248673,-258.942887,0.00019999,2]
[362333535,1748200248683,-151.0,0.00019999,2]
[362333536,1748200248694,-151.0,0.00019999,2]
[362333537,1748200248704,-2004.87500045,0.00019999,2]
[362333538,1748200248713,-151.0,0.00019999,2]
[362333539,1748200248723,-151.0,0.00019999,2]
[362333540,1748200248733,-151.0,0.00019999,2]
[362333541,1748200248742,-151.0,0.00019999,2]
[362333542,1748200248752,-245.81897,0.00019999,2]
[362333543,1748200248761,-282.620273,0.00019999,2]
[362333544,1748200248771,-151.0,0.00019999,2]
[362333545,1748200248781,-151.0,0.00019999,2]
[362333546,1748200248791,-151.0,0.00019999,2]
[362333547,1748200248801,-151.0,0.00019999,2]
[362333548,1748200248811,-151.0,0.00019999,2]
[362333549,1748200248820,-151.0,0.00019999,2]
[362333550,1748200248830,-151.0,0.00019999,2]
[362333551,1748200248840,-239.723892,0.00019999,2]
[362333552,1748200248849,-151.0,0.00019999,2]
[362333553,1748200248859,-151.0,0.00019999,2]
[362333554,1748200248869,-2000.0,0.00019999,2]
[362333555,1748200248878,-151.0,0.00019999,2]
[362333556,1748200248889,-151.0,0.00019999,2]
[362333557,1748200248899,-178.958119,0.00019999,2]
[362333558,1748200248909,-178.958119,0.00019999,2]
[362333559,1748200248919,-178.958119,0.00019999,2]
[362333560,1748200248929,-178.958119,0.00019999,2]
[362333561,1748200248943,-420.0,0.00019999,2]
[362333562,1748200248953,-420.0,0.00019999,2]
[362333563,1748200248966,-420.0,0.00019999,2]
[362333564,1748200248976,-420.0,0.00019999,2]
[362333565,1748200248987,-420.0,0.00019999,2]
[362333566,1748200248998,-420.0,0.00019999,2]
[362333567,1748200249009,-420.0,0.00019999,2]
[362333568,1748200249019,-420.0,0.00019999,2]
[362333569,1748200249028,-420.0,0.00019999,2]
[362333570,1748200249039,-420.0,0.00019999,2]
[362333571,1748200249048,-181.9,0.00019999,2]
[362333572,1748200249058,-151.0,0.00019999,2]
[362333573,1748200249068,-151.0,0.00019999,2]
[362333574,1748200249078,-151.0,0.00019999,2]
[362333575,1748200249088,-151.0,0.00019999,2]
[362333576,1748200249098,-151.0,0.00019999,2]
[362333577,1748200249108,-151.0,0.00019999,2]
[362333578,1748200249119,-155.062473,0.00019999,2]
[362333579,1748200249128,-151.0,0.00019999,2]
[362333580,1748200249138,-544.949438,0.00019999,2]
[362333581,1748200249147,-544.949438,0.00019999,2]
[362333582,1748200249157,-544.949438,0.00019999,2]
[362333583,1748200249167,-544.949438,0.00019999,2]
[362333584,1748200249177,-151.0,0.00019999,2]
[362333585,1748200249186,-401.504176,0.00019999,2]
[362333586,1748200249196,-401.504176,0.00019999,2]
[362333587,1748200249206,-151.0,0.00019999,2]
[362333588,1748200249215,-151.0,0.00019999,2]
[362333589,1748200249225,-401.504176,0.00019999,2]
[362333590,1748200249235,-401.504176,0.00019999,2]
[362333591,1748200249245,-420.0,0.00019999,2]
[362333592,1748200249255,-420.0,0.00019999,2]
[362333593,1748200249264,-420.0,0.00019999,2]
[362333594,1748200249274,-420.0,0.00019999,2]
[362333595,1748200249284,-420.0,0.00019999,2]
[362333596,1748200249293,-420.0,0.00019999,2]
[362333597,1748200249303,-420.0,0.00019999,2]
[362333598,1748200249312,-420.0,0.00019999,2]
[362333599,1748200249322,-420.0,0.00019999,2]
[362333600,1748200249331,-420.0,0.00019999,2]
[362333601,1748200249341,-420.0,0.00019999,2]
[362333602,1748200249351,-167.84,0.00019999,2]
[362333603,1748200249360,-150.0,0.00019999,2]
[362333604,1748200249371,-420.0,0.00019999,2]
[362333605,1748200249380,-420.0,0.00019999,2]
[362333606,1748200249393,-420.0,0.00019999,2]
[362333607,1748200249403,-420.0,0.00019999,2]
[362333608,1748200249413,-420.0,0.00019999,2]
[362333609,1748200249423,-172.68,0.00019999,2]
[362333610,1748200249433,-420.0,0.00019999,2]
[362333611,1748200249443,-420.0,0.00019999,2]
[362333612,1748200249453,-420.0,0.00019999,2]
[362333613,1748200249464,-420.0,0.00019999,2]
[362333614,1748200249473,-420.0,0.00019999,2]
[362333615,1748200249483,-527.37,0.00019999,2]
[362333616,1748200249492,-1283.37,0.00019999,2]
[362333617,1748200249502,-1283.37,0.00019999,2]
[362333618,1748200249512,-580.668852,0.00019999,2]
[362333619,1748200249521,-1283.37,0.00019999,2]
[362333620,1748200249531,-1283.37,0.00019999,2]
[362333621,1748200249540,-1283.37,0.00019999,2]
[362333622,1748200249550,-1283.37,0.00019999,2]
[362333623,1748200249560,-1283.37,0.00019999,2]
[362333624,1748200249569,-1283.37,0.00019999,2]
[362333625,1748200249578,-1283.37,0.00019999,2]
[362333626,1748200249588,-4038.172306,0.00019999,2]
[362333627,1748200249598,-1283.37,0.00019999,2]
[362333628,1748200249607,-1283.37,0.00019999,2]
[362333629,1748200249617,-1283.37,0.00019999,2]
[362333630,1748200249627,-1283.37,0.00019999,2]
[362333631,1748200249636,-1283.37,0.00019999,2]
[362333632,1748200249645,-1283.37,0.00019999,2]
[362333633,1748200249655,-580.668852,0.00019999,2]
[362333634,1748200249665,-1283.37,0.00019999,2]
[362333635,1748200249675,-1283.37,0.00019999,2]
[362333636,1748200249685,-1283.37,0.00019999,2]
[362333637,1748200249695,-1283.37,0.00019999,2]
[362333638,1748200249704,-1283.48,0.00019999,2]
[362333639,1748200249714,-4038.172306,0.00019999,2]
[362333640,1748200249724,-420.0,0.00019999,2]
[362333641,1748200249733,-420.0,0.00019999,2]
[362333642,1748200249742,-420.0,0.00019999,2]
[362333643,1748200249752,-420.0,0.00019999,2]
[362333644,1748200249762,-420.0,0.00019999,2]
[362333645,1748200249771,-151.0,0.00019999,2]
[362333646,1748200249781,-151.0,0.00019999,2]
[362333647,1748200249790,-1349.823335,0.00019999,2]
[362333648,1748200249800,-1349.823335,0.00019999,2]
[362333649,1748200249810,-200.404828,0.00019999,2]
[362333650,1748200249819,-200.404828,0.00019999,2]
[362333651,1748200249829,-1349.823335,0.00019999,2]
[362333652,1748200249839,-1349.823335,0.00019999,2]
[362333653,1748200249849,-151.0,0.00019999,2]
[362333654,1748200249858,-200.404828,0.00019999,2]
[362333655,1748200249918,-200.404828,0.00019999,2]
[362333656,1748200249927,-496.45929162,0.00019999,2]
[362333657,1748200249937,-151.0,0.00019999,2]
[362333658,1748200249946,-500.0,0.00019999,2]
[362333659,1748200249955,-420.0,0.00019999,2]
[362333660,1748200249964,-420.0,0.00019999,2]
[362333661,1748200249974,-420.0,0.00019999,2]
[362333662,1748200249983,-216.64098973,0.00019999,2]
[362333663,1748200249992,-420.0,0.00019999,2]
[362333664,1748200250002,-420.0,0.00019999,2]
[362333665,1748200250011,-420.0,0.00019999,2]
[362333666,1748200250022,-255.6,0.00019999,2]
[362333667,1748200250031,-443.4708273,0.00019999,2]
[362333668,1748200250041,-275.05,0.00019999,2]
[362333669,1748200250051,-420.0,0.00019999,2]
[362333670,1748200250062,-420.0,0.00019999,2]
[362333671,1748200250073,-420.0,0.00019999,2]
[362333672,1748200250083,-420.0,0.00019999,2]
[362333673,1748200250093,-420.0,0.00019999,2]
[362333674,1748200250102,-420.0,0.00019999,2]
[362333675,1748200250114,-420.0,0.00019999,2]
[362333676,1748200250124,-420.0,0.00019999,2]
[362333677,1748200250134,-420.0,0.00019999,2]
[362333678,1748200250144,-420.0,0.00019999,2]
[362333679,1748200250154,-420.0,0.00019999,2]
[362333680,1748200250163,-420.0,0.00019999,2]
[362333681,1748200250173,-420.0,0.00019999,2]
[362333682,1748200250182,-420.0,0.00019999,2]
[362333683,1748200250192,-349.12,0.00019999,2]
[362333684,1748200250202,-151.0,0.00019999,2]
[362333685,1748200250211,-151.0,0.00019999,2]
[362333686,1748200250220,-533.6,0.00019999,2]
[362333687,1748200250230,-151.0,0.00019999,2]
[362333688,1748200250239,-151.0,0.00019999,2]
[362333689,1748200250249,-420.0,0.00019999,2]
[362333690,1748200250258,-420.0,0.00019999,2]
[362333691,1748200250267,-420.0,0.00019999,2]
[362333692,1748200250277,-420.0,0.00019999,2]
[362333693,1748200250286,-420.0,0.00019999,2]
[362333694,1748200250295,-420.0,0.00019999,2]
[362333695,1748200250305,-150.0,0.00019999,2]
[362333696,1748200250314,-500.0,0.00019999,2]
[362333697,1748200250324,-1895.83,0.00019999,2]
[362333698,1748200250333,-420.0,0.00019999,2]
[362333699,1748200250342,-420.0,0.00019999,2]
[362333700,1748200250351,-1895.83,0.00019999,2]
[362333701,1748200250361,-420.0,0.00019999,2]
[362333702,1748200250370,-420.0,0.00019999,2]
[362333703,1748200250379,-1895.83,0.00019999,2]
[362333704,1748200250390,-420.0,0.00019999,2]
[362333705,1748200250399,-1895.83,0.00019999,2]
[362333706,1748200250408,-420.0,0.00019999,2]
[362333707,1748200250418,-420.0,0.00019999,2]
[362333708,1748200250427,-1895.83,0.00019999,2]
[362333709,1748200250437,-420.0,0.00019999,2]
[362333710,1748200250446,-1895.83,0.00019999,2]
[362333711,1748200250456,-545.60527138,0.00019999,2]
[362333712,1748200250466,-364.4,0.00019999,2]
[362333713,1748200250476,-1895.83,0.00019999,2]
[362333714,1748200250486,-1895.83,0.00019999,2]
[362333715,1748200250495,-1895.83,0.00019999,2]
[362333716,1748200250504,-1895.83,0.00019999,2]
[362333717,1748200250514,-1895.83,0.00019999,2]
[362333718,1748200250524,-1895.83,0.00019999,2]
[362333719,1748200250533,-1895.83,0.00019999,2]
[362333720,1748200250542,-1895.83,0.00019999,2]
[362333721,1748200250552,-1895.83,0.00019999,2]
[362333722,1748200250562,-1895.83,0.00019999,2]
[362333723,1748200250571,-683.95,0.00019999,2]
[362333724,1748200250580,-1895.83,0.00019999,2]
[362333725,1748200250590,-683.95,0.00019999,2]
[362333726,1748200250600,-1895.99,0.00019999,2]
[362333727,1748200250609,-683.95,0.00019999,2]
[362333728,1748200250619,-683.95,0.00019999,2]
[362333729,1748200250628,-683.95,0.00019999,2]
[362333730,1748200250637,-683.95,0.00019999,2]
[362333731,1748200250647,-683.95,0.00019999,2]
[362333732,1748200250656,-683.95,0.00019999,2]
[362333733,1748200250665,-683.95,0.00019999,2]
[362333734,1748200250675,-683.95,0.00019999,2]
[362333735,1748200250684,-683.95,0.00019999,2]
[362333736,1748200250694,-683.95,0.00019999,2]
[362333737,1748200250703,-683.95,0.00019999,2]
[362333738,1748200250712,-683.95,0.00019999,2]
[362333739,1748200250723,-683.95,0.00019999,2]
[362333740,1748200250732,-683.95,0.00019999,2]
[362333741,1748200250742,-683.95,0.00019999,2]
[362333742,1748200250751,-683.95,0.00019999,2]
[362333743,1748200250760,-683.95,0.00019999,2]
[362333744,1748200250769,-684.18102771,0.00019999,2]
[362333745,1748200250778,-270.05826901,0.00019999,2]
[362333746,1748200250787,-845.96,0.00019999,2]
[362333747,1748200250796,-845.96,0.00019999,2]
[362333748,1748200250805,-845.96,0.00019999,2]
[362333749,1748200250814,-845.96,0.00019999,2]
[362333750,1748200250824,-845.96,0.00019999,2]
[362333751,1748200250833,-845.96,0.00019999,2]
[362333752,1748200250842,-845.96,0.00019999,2]
[362333753,1748200250851,-845.96,0.00019999,2]
[362333754,1748200250860,-845.96,0.00019999,2]
[362333755,1748200250870,-845.96,0.00019999,2]
[362333756,1748200250879,-845.96,0.00019999,2]
[362333757,1748200250888,-845.96,0.00019999,2]
[362333758,1748200250898,-845.96,0.00019999,2]
[362333759,1748200250907,-845.96,0.00019999,2]
[362333760,1748200250916,-845.96,0.00019999,2]
[362333761,1748200250927,-845.96,0.00019999,2]
[362333762,1748200250936,-845.96,0.00019999,2]
[362333763,1748200250945,-845.98,0.00019999,2]
[362333764,1748200250955,-151.0,0.00019999,2]
[362333765,1748200250965,-151.0,0.00019999,2]
[362333766,1748200250974,-242.944791,0.00019999,2]
[362333767,1748200250984,-159.833051,0.00019999,2]
[362333768,1748200250993,-1408.68,0.00019999,2]
[362333769,1748200251002,-1408.68,0.00019999,2]
[362333770,1748200251012,-1408.68,0.00019999,2]
[362333771,1748200251021,-1408.68,0.00019999,2]
[362333772,1748200251031,-1408.68,0.00019999,2]
[362333773,1748200251040,-1408.68,0.00019999,2]
[362333774,1748200251049,-1408.68,0.00019999,2]
[362333775,1748200251058,-1408.68,0.00019999,2]
[362333776,1748200251068,-1408.68,0.00019999,2]
[362333777,1748200251077,-1408.68,0.00019999,2]
[362333778,1748200251086,-1408.68,0.00019999,2]
[362333779,1748200251095,-1408.68,0.00019999,2]
[362333780,1748200251105,-1408.68,0.00019999,2]
[362333781,1748200251115,-1408.68,0.00019999,2]
[362333782,1748200251124,-1408.68,0.00019999,2]
[362333783,1748200251134,-1408.68,0.00019999,2]
[362333784,1748200251143,-1408.68,0.00019999,2]
[362333785,1748200251153,-1408.68,0.00019999,2]
[362333786,1748200251162,-1408.68,0.00019999,2]
[362333787,1748200251171,-1408.88855858,0.00019999,2]
[362333788,1748200251181,-420.0,0.00019999,2]
[362333789,1748200251190,-420.0,0.00019999,2]
[362333790,1748200251200,-420.0,0.00019999,2]
[362333791,1748200251209,-265.19181384,0.00019999,2]
[362333792,1748200251219,-211.76283,0.00019999,2]
[362333793,1748200251229,-211.76283,0.00019999,2]
[362333794,1748200251238,-211.76283,0.00019999,2]
[362333795,1748200251249,-211.76283,0.00019999,2]
[362333796,1748200251259,-530.41,0.00019999,2]
[362333797,1748200251268,-530.41,0.00019999,2]
[362333798,1748200251278,-530.41,0.00019999,2]
[362333799,1748200251287,-530.41,0.00019999,2]
[362333800,1748200251296,-530.41,0.00019999,2]
[362333801,1748200251306,-530.41,0.00019999,2]
[362333802,1748200251315,-530.41,0.00019999,2]
[362333803,1748200251324,-530.41,0.00019999,2]
[362333804,1748200251334,-530.41,0.00019999,2]
[362333805,1748200251343,-530.41,0.00019999,2]
[362333806,1748200251352,-530.41,0.00019999,2]
[362333807,1748200251361,-530.41,0.00019999,2]
[362333808,1748200251370,-530.41,0.00019999,2]
[362333809,1748200251379,-530.41,0.00019999,2]
[362333810,1748200251390,-530.41,0.00019999,2]
[362333811,1748200251400,-530.41,0.00019999,2]
[362333812,1748200251409,-530.41,0.00019999,2]
[362333813,1748200251418,-530.41,0.00019999,2]
[362333814,1748200251428,-530.41,0.00019999,2]
[362333815,1748200251437,-150.0,0.0002,2]
[362333816,1748200251447,-150.0,0.0002,2]
[362333817,1748200251456,-150.0,0.0002,2]
[362333818,1748200251466,-1311.0,0.0002,2]
[362333819,1748200251477,-938.0,0.0002,2]
[362333820,1748200251486,-799.0,0.0002,2]
[362333821,1748200251496,-632.0,0.0002,2]
[362333822,1748200251505,-592.438,0.0002,2]
[362333823,1748200251514,-1263.0,0.0002,2]
[362333824,1748200251524,-922.0,0.0002,2]
[362333825,1748200251533,-555.0,0.0002,2]
[362333826,1748200251543,-4269142.18119858,0.0002,2]
[362333827,1748200251779,-217.570133,0.00019998,2]
[362333828,1748200251789,-530.59,0.00019999,2]
[362333829,1748200251799,-475499.51486843,0.0002,2]
[362333830,1748200251810,-284388.31899769,0.0002,2]
[362333831,1748200251873,-217.570133,0.00019998,2]
[362333832,1748200251882,-217.570133,0.00019999,2]
[362333833,1748200251894,-125743.67933762,0.0002,2]
[362333834,1748200252094,-786.04664075,0.00019178,2]
[362333835,1748200252104,-416.00335925,0.00019178,2]
[362333836,1748200252116,-370.0432815,0.00019178,2]
[362333837,1748200252126,-349.55475026,0.00019178,2]
[362333838,1748200406025,250.0,0.00015,2]
[362333839,1748200408358,-267.01650351,0.00017,2]
[362333840,1748200411036,-32.98349649,0.00017,2]
[362333841,1748200411060,-160.69650351,0.00017027,2]
[362333842,1748200412452,-213.65002,0.00017027,2]
[362333843,1748200417177,-325.5242035,0.00017027,2]
[362333844,1748200419426,-331.24594984,0.00017027,2]
[362333845,1748200421469,-248.81332315,0.00017027,2]
[362333847,1748200471845,368.56,0.00013699,2]
[362333848,1748200571888,216.1,0.00015019,2]
[362333849,1748200685961,171.82,0.00021945,30]
[362333853,1748201045490,-186.59,0.00016712,2]
[362333854,1748201045514,-1.0278665,0.00017533,2]
[362333855,1748201046888,-176.6381465,0.00017533,2]
[362333856,1748201081843,-175.5740513,0.00017142,2]
[362333857,1748201119822,200.32410995,9e-05,2]
[362333858,1748201136523,94.67199733,9e-05,2]
[362333859,1748201136544,2817.02232145,9e-05,2]
[362333860,1748201136565,2817.02232145,9e-05,2]
[362333861,1748201136587,552.02886233,9e-05,2]
[362333862,1748201154830,1671.08224735,6.94e-05,2]
[362333863,1748201162093,593.91121177,8e-05,2]
[362333864,1748201162117,99.54282152,8e-05,2]
[362333865,1748201240901,2057.23086875,0.0001305,2]
[362333866,1748201321802,4190.70256082,0.00013368,2]
[362333868,1748201429596,-218.79687005,0.00016079,2]
[362333869,1748201431017,-266.30283643,0.00016079,2]
[362333874,1748201432141,-813.80029352,0.00016079,2]
[362333876,1748201432151,-214.0,0.00017142,2]
[362333878,1748201432161,-200.0,0.0001724,2]
[362333879,1748201432170,-20.55553036,0.00017289,2]
[362333880,1748201432182,-229.44446964,0.00017289,2]
[362333881,1748201432191,-200.0,0.00017338,2]
[362333882,1748201432201,-200.0,0.00017712,2]
[362333883,1748201432210,-1000.0,0.00017997,2]
[362333884,1748201432219,-335.03,0.00018167,2]
[362333885,1748201432228,-364.256013,0.00018193,2]
[362333886,1748201432237,-200.0,0.00018284,2]
[362333887,1748201432247,-250.0,0.00018312,2]
[362333888,1748201432256,-1449.92,0.00018328,2]
[362333889,1748201432266,-1200.0,0.0001834,2]
[362333890,1748201432276,-4110.67166054,0.00018341,2]
[362333891,1748201432287,-7211.0,0.00018341,2]
[362333892,1748201432298,-2200.469976,0.00018341,2]
[362333893,1748201432312,-6438.10812991,0.00018341,2]
[362333894,1748201432325,-3425.0999998,0.00018341,2]
[362333895,1748201432337,-514.65023375,0.00018341,2]
[362333896,1748201432347,-1298.9,0.00018343,2]
[362333897,1748201432357,-200.0,0.00018354,2]
[362333898,1748201432367,-537.75,0.00018391,2]
[362333899,1748201432378,-443.05,0.0001842,2]
[362333900,1748201432388,-2924.14,0.0001858,2]
[362333901,1748201432397,-406.80976625,0.00018614,2]
[362333902,1748201432410,-1101.61203375,0.00018614,2]
[362333903,1748201432421,-150.0,0.00018628,2]
[362333904,1748201432432,-300.0,0.00018661,2]
[362333905,1748201432441,-2589.45,0.00018662,2]
[362333906,1748201432452,-850.0,0.00018712,2]
[362333907,1748201432462,-1507.39075757,0.00018713,2]
[362333908,1748201432478,-2240.13332564,0.00018713,2]
[362333909,1748201432490,-1138.48394207,0.00018713,2]
[362333910,1748201432511,-1868.03384965,0.00018713,2]
[362333911,1748201432523,-562.76417773,0.00018713,2]
[362333913,1748201432534,-10261.81394734,0.00018713,2]
[362333914,1748201432544,-2269.32171093,0.00018713,2]
[362333915,1748201432555,-458.0009778,0.00018713,2]
[362333939,1748201438356,-300.0,0.0001834,2]
[362333940,1748201438365,-27272.66731127,0.00018713,2]
[362333941,1748201438374,-6075.45,0.00018714,2]
[362333942,1748201438384,-29999.99,0.00018714,2]
[362333943,1748201438393,-12875.63,0.00018715,2]
[362333944,1748201438402,-185.53,0.00018774,2]
[362333945,1748201438412,-150.0,0.00018827,2]
[362333946,1748201438420,-734.99283696,0.0001885,2]
[362333947,1748201438430,-200.0,0.00018856,2]
[362333948,1748201438439,-250.0,0.00018856,2]
[362333949,1748201438448,-200.0,0.00018856,2]
[362333950,1748201438457,-167.77,0.0001887,2]
[362333951,1748201438466,-165.04,0.00018909,2]
[362333952,1748201438475,-250.0,0.00018964,2]
[362333953,1748201438484,-1366.93,0.00018969,2]
[362333954,1748201438493,-151.0,0.00018998,2]
[362333955,1748201438503,-1199.20597015,0.00018998,2]
[362333956,1748201438512,-151.0,0.00018998,2]
[362333958,1748201438521,-668.65185757,0.00018998,2]
[362333959,1748201438530,-668.65185757,0.00018998,2]
[362333960,1748201438539,-207.4,0.00018998,2]
[362333961,1748201438548,-350.0,0.00019,2]
[362333962,1748201438557,-734.99283696,0.00019117,2]
[362333963,1748201438566,-4000.0,0.00019178,2]
[362333964,1748201438576,-1500.0,0.00019178,2]
[362333965,1748201438586,-176.01,0.00019178,2]
[362333966,1748201438595,-3277.25,0.00019178,2]
[362333967,1748201438605,-734.99283696,0.00019342,2]
[362333968,1748201438615,-734.99283696,0.00019464,2]
[362333969,1748201438624,-693.3919763,0.00019546,2]
[362333970,1748201438633,-878.851085,0.00019599,2]
[362333971,1748201438642,-1000.0,0.0001967,2]
[362333972,1748201438651,-6281.06668467,0.00019725,2]
[362333973,1748201438660,-173.664235,0.00019726,2]
[362333974,1748201438669,-151.0,0.00019726,2]
[362333975,1748201438678,-151.0,0.00019726,2]
[362333976,1748201438687,-1445.0,0.0001976,2]
[362333977,1748201438696,-3186.0,0.000198,2]
[362333978,1748201438706,-635.11423685,0.0001983,2]
[362333979,1748201438715,-635.11423685,0.0001983,2]
[362333980,1748201438724,-635.11423685,0.0001983,2]
[362333981,1748201438733,-635.11423685,0.0001983,2]
[362333982,1748201438742,-635.11423685,0.0001983,2]
[362333983,1748201438751,-635.11423685,0.0001983,2]
[362333984,1748201438760,-242.15242742,0.0001983,2]
[362333985,1748201438769,-635.11423685,0.0001983,2]
[362333986,1748201438778,-635.11423685,0.0001983,2]
[362333987,1748201438787,-635.11423685,0.0001983,2]
[362333988,1748201438796,-635.11423685,0.0001983,2]
[362333989,1748201438805,-635.11423685,0.0001983,2]
[362333990,1748201438814,-635.11423685,0.0001983,2]
[362333991,1748201438823,-635.11423685,0.0001983,2]
[362333992,1748201438833,-635.11423685,0.0001983,2]
[362333993,1748201438842,-635.11423685,0.0001983,2]
[362333994,1748201438851,-151.0,0.00019831,2]
[362333995,1748201438861,-151.0,0.00019831,2]
[362333996,1748201438870,-200.0,0.0001984,2]
[362333997,1748201438879,-227.20849035,0.00019895,2]
[362333998,1748201438888,-171.32931738,0.00019895,2]